bitfinex-derivatives/quotes_BNBF0:USTF0_20250330
["timestamp","ask_amount","ask_price","bid_price","bid_amount"]
[1743309857704,1.13300635,612.22,611.01,1.0]
[1743309857899,1.13300635,612.21,611.01,1.0]
[1743309858104,1.45969163,612.21,611.01,1.0]
[1743309858406,1.41758396,612.2,611.01,1.0]
[1743309859502,1.13300635,612.19,611.01,1.0]
[1743309860409,0.28457761,612.2,611.01,1.0]
[1743309861011,0.90624104,612.2,611.01,1.0]
[1743309861309,0.28457761,612.19,611.01,1.0]
[1743309861608,1.19081865,612.19,611.01,1.0]
[1743309861804,4.88519025,612.19,611.01,1.0]
[1743309862001,0.90624104,612.18,611.01,1.0]
[1743309862204,7.5776105,612.19,611.01,1.0]
[1743309862509,3.6943716,612.18,611.01,1.0]
[1743309862912,6.63913273,612.18,611.01,1.0]
[1743309863212,1.42161422,612.17,611.01,1.0]
[1743309863413,1.13300635,612.17,611.01,1.0]
[1743309863912,0.32668528,612.21,611.01,1.0]
[1743309864312,0.28458227,612.16,611.01,1.0]
[1743309864914,1.951,612.15,611.01,1.0]
[1743309867216,3.37261422,612.15,611.01,1.0]
[1743309867414,0.28458459,612.14,611.01,1.0]
[1743309869316,1.70107345,612.14,611.01,1.0]
[1743309869517,0.28458459,612.14,611.01,1.0]
[1743309869710,1.41759094,612.14,611.01,1.0]
[1743309869913,1.13300635,612.14,611.01,1.0]
[1743309870110,2.5494864,612.14,611.01,1.0]
[1743309870316,1.41648005,612.14,611.01,1.0]
[1743309870516,0.28458576,612.13,611.01,1.0]
[1743309872910,2.54929378,612.14,611.01,1.0]
[1743309873517,0.28459507,612.13,611.01,1.0]
[1743309878915,1.13300635,612.14,611.01,1.0]
[1743309879418,0.28457645,612.12,611.01,1.0]
[1743309882018,1.951,612.15,611.01,1.0]
[1743309882523,0.28457528,612.11,611.01,1.0]
[1743309884922,1.951,612.15,611.01,1.0]
[1743309885323,0.28457528,612.1,611.01,1.0]
[1743309887930,1.951,612.15,611.01,1.0]
[1743309888427,0.28457528,612.09,611.01,1.0]
[1743309891029,1.951,612.15,611.01,1.0]
[1743309891925,0.32668528,612.21,611.01,1.0]
[1743309893329,0.28454387,612.2,611.01,1.0]
[1743309893930,0.32668528,612.21,611.01,1.0]
[1743309894533,1.666,612.2,611.01,1.0]
[1743309895329,0.28456947,612.19,611.01,1.0]
[1743309897031,1.666,612.2,611.01,1.0]
[1743309897227,0.28456947,612.18,611.01,1.0]
[1743309899831,1.13300635,612.17,611.01,1.0]
[1743309900031,5.73328636,612.17,611.01,1.0]
[1743309900228,4.60028001,612.16,611.01,1.0]
[1743309900534,4.60028001,612.15,611.01,1.0]
[1743309900733,3.69384395,612.15,611.01,1.0]
[1743309901127,1.13300635,612.14,611.01,1.0]
[1743309902035,1.13300635,612.13,611.01,1.0]
[1743309902626,1.13300635,612.12,611.01,1.0]
[1743309903028,1.13300635,612.11,611.01,1.0]
[1743309903537,1.13300635,612.1,611.01,1.0]
[1743309904032,1.13300635,612.09,611.01,1.0]
[1743309904431,1.13300635,612.08,611.01,1.0]
[1743309905032,1.13300635,612.07,611.01,1.0]
[1743309905232,1.42070921,612.06,611.0,0.28456947]
[1743309905427,1.42070921,612.05,611.0,0.28456947]
[1743309905637,1.42070921,612.04,611.0,0.28456947]
[1743309905934,1.42070921,612.03,610.92,0.3273751]
[1743309906129,1.42070921,612.02,610.92,0.3273751]
[1743309906329,1.13300635,612.05,610.92,0.3273751]
[1743309906330,1.42070921,612.01,610.92,0.3273751]
[1743309906535,1.42070921,612.0,610.92,0.3273751]
[1743309906735,1.42070921,611.99,610.92,0.3273751]
[1743309907037,1.42070921,611.98,610.92,0.3273751]
[1743309907235,1.42070921,611.99,610.92,0.3273751]
[1743309907439,1.13300635,611.97,610.92,0.3273751]
[1743309907932,1.13300635,611.96,610.92,0.3273751]
[1743309908439,1.13300635,611.95,610.92,0.3273751]
[1743309908832,1.13300635,611.94,610.92,0.3273751]
[1743309909632,1.13300635,611.96,610.92,0.3273751]
[1743309909838,2.55371556,611.96,610.92,0.3273751]
[1743309910034,1.13300635,611.96,610.92,0.3273751]
[1743309910233,0.28471498,611.95,610.92,0.3273751]
[1743309910434,1.41772133,611.95,610.92,0.3273751]
[1743309911340,0.28471498,611.95,610.92,0.3273751]
[1743309912039,2.32801332,612.01,610.92,0.3273751]
[1743309912239,0.28464162,611.94,610.92,0.3273751]
[1743309915040,4.50444595,612.11,610.92,0.3273751]
[1743309915238,5.58415498,612.1,610.92,0.3273751]
[1743309915440,0.28462998,611.93,610.92,0.3273751]
[1743309915635,1.23408173,612.09,610.92,0.3273751]
[1743309915842,1.45976102,612.08,610.92,0.3273751]
[1743309916040,2.36709342,612.08,610.92,0.3273751]
[1743309916237,6.06315366,612.08,610.92,0.3273751]
[1743309916437,1.19196704,612.07,610.92,0.3273751]
[1743309916642,0.32676534,612.06,610.92,0.3273751]
[1743309916842,1.45977169,612.06,610.92,0.3273751]
[1743309917042,2.36710409,612.06,610.92,0.3273751]
[1743309917236,6.06316433,612.06,610.92,0.3273751]
[1743309917442,2.04033875,612.05,610.92,0.3273751]
[1743309917742,4.82906659,612.05,610.92,0.3273751]
[1743309917944,1.13300635,612.04,610.92,1.3273751]
[1743309918343,1.4176375,612.04,610.92,1.3273751]
[1743309918643,0.28463115,612.04,610.92,1.3273751]
[1743309919638,0.28463115,612.04,611.06,1.0]
[1743309921047,0.32676534,612.06,611.06,1.0]
[1743309922443,0.2845683,612.05,611.06,1.0]
[1743309924048,1.523,612.04,611.06,1.0]
[1743309924445,1.80758227,612.04,611.06,1.0]
[1743309927141,1.523,612.04,611.06,1.0]
[1743309928551,1.80758227,612.04,611.06,1.0]
[1743309928746,1.523,612.04,611.06,1.0]
[1743309937645,1.523,612.04,611.24,1.0]
[1743309941253,1.523,612.04,611.25,0.32719836]
[1743309943053,0.28448456,612.37,611.25,0.32719836]
[1743309945058,3.68611244,612.62,611.25,0.32719836]
[1743309945260,1.205,612.36,611.25,0.32719836]
[1743309958776,1.205,612.36,611.37,1.0]
[1743309964378,0.28441597,612.44,611.37,1.0]
[1743309965580,1.13327422,612.43,611.37,1.0]
[1743309965974,1.13327422,612.42,611.37,1.0]
[1743309966981,1.13327422,612.43,611.37,1.0]
[1743309967180,1.641,612.41,611.37,1.0]
[1743309969782,1.641,612.41,611.29,0.28441597]
[1743309970985,3.05520002,612.41,611.29,0.28441597]
[1743309971186,1.41420002,612.4,611.29,0.28441597]
[1743309971380,1.641,612.41,611.29,0.28441597]
[1743309971776,3.05520002,612.41,611.29,0.28441597]
[1743309971981,1.41420002,612.4,611.29,0.28441597]
[1743309972179,1.641,612.41,611.29,0.28441597]
[1743309974586,1.641,612.41,611.25,0.32719836]
[1743309974785,0.2844613,612.4,611.26,1.0]
[1743309974985,0.2844613,612.4,611.29,0.2844613]
[1743309975586,1.69866132,612.4,611.29,0.2844613]
[1743309975787,2.83193554,612.4,611.29,0.2844613]
[1743309976283,1.41773552,612.4,611.29,0.2844613]
[1743309976984,0.2844613,612.4,611.29,0.2844613]
[1743309977592,1.641,612.41,611.25,0.32719836]
[1743309977785,0.2844613,612.39,611.26,1.0]
[1743309977991,0.2844613,612.39,611.29,0.2844613]
[1743309978285,0.2844613,612.39,611.3,0.3271716]
[1743309980488,1.641,612.41,611.3,0.3271716]
[1743309980891,0.28442875,612.4,611.3,0.3271716]
[1743309983494,1.13327422,612.47,611.3,0.3271716]
[1743309983894,0.28442178,612.4,611.3,0.3271716]
[1743309986601,1.119,612.39,611.3,0.3271716]
[1743309986801,1.40341945,612.39,611.3,0.3271716]
[1743309987203,1.40341945,612.39,611.32,1.0]
[1743309989603,1.119,612.39,611.32,1.0]
[1743309990004,0.28444154,612.38,611.32,1.0]
[1743309992604,1.119,612.39,611.32,1.0]
[1743309992803,0.28443224,612.38,611.32,1.0]
[1743309996512,0.28443224,612.38,611.4,2.47085025]
[1743309997207,1.41770646,612.38,611.4,2.47085025]
[1743309997807,1.13327422,612.37,611.4,2.47085025]
[1743309998609,1.13327422,612.36,611.4,2.47085025]
[1743309999210,2.5514819,612.39,611.4,2.47085025]
[1743309999410,1.13327422,612.39,611.4,2.47085025]
[1743309999812,1.13327422,612.38,611.4,2.47085025]
[1743310000214,1.13327422,612.39,611.4,2.47085025]
[1743310000509,1.13327422,612.39,611.41,1.0]
[1743310000811,0.28439505,612.5,611.41,1.0]
[1743310001216,1.13327422,612.49,611.41,1.0]
[1743310001515,2.51827422,612.49,611.41,1.0]
[1743310002016,1.13327422,612.48,611.41,1.0]
[1743310003913,1.13327422,612.47,611.41,1.0]
[1743310004810,1.13327422,612.46,611.41,1.0]
[1743310005818,1.13327422,612.48,611.41,1.0]
[1743310006517,1.13327422,612.47,611.41,1.0]
[1743310007016,1.13327422,612.46,611.41,1.0]
[1743310007911,1.13327422,612.45,611.41,1.0]
[1743310008916,1.385,612.49,611.41,1.0]
[1743310008917,1.13327422,612.44,611.41,1.0]
[1743310009414,1.41820768,612.43,611.41,1.0]
[1743310009813,2.5514819,612.43,611.41,1.0]
[1743310010015,1.13327422,612.43,611.41,1.0]
[1743310010616,1.13327422,612.42,611.41,1.0]
[1743310010817,1.41769367,612.42,611.41,1.0]
[1743310011012,1.41820768,612.41,611.41,1.0]
[1743310011419,1.41820768,612.4,611.41,1.0]
[1743310012421,1.13327422,612.39,611.41,1.0]
[1743310013222,1.13327422,612.38,611.41,1.0]
[1743310013725,2.5514819,612.38,611.41,1.0]
[1743310013918,1.13327422,612.37,611.41,1.0]
[1743310014322,2.5514819,612.37,611.41,1.0]
[1743310014623,1.13327422,612.37,611.41,1.0]
[1743310014823,1.13327422,612.36,611.41,1.0]
[1743310015424,1.13327422,612.35,611.41,1.0]
[1743310016021,1.13327422,612.34,611.41,1.0]
[1743310016622,1.13327422,612.33,611.41,1.0]
[1743310017326,1.13327422,612.32,611.41,1.0]
[1743310018028,1.13327422,612.31,611.41,1.0]
[1743310018621,0.28443456,612.35,611.41,1.0]
[1743310019624,3.70130113,612.4,611.41,1.0]
[1743310019930,0.28442759,612.35,611.41,1.0]
[1743310022429,0.61103818,612.35,611.41,1.0]
[1743310022735,0.32661059,612.35,611.41,1.0]
[1743310023029,0.28444038,612.34,611.41,1.0]
[1743310023736,1.4177146,612.34,611.41,1.0]
[1743310023935,1.74433053,612.34,611.41,1.0]
[1743310024536,0.61105631,612.34,611.41,1.0]
[1743310025331,1.987,612.33,611.41,1.0]
[1743310025732,1.987,612.33,611.27,1.0]
[1743310025935,0.28444735,612.32,611.37,0.28444735]
[1743310026136,1.70813496,612.32,611.07,2.47085025]
[1743310026337,1.74434817,612.32,611.23,1.0]
[1743310026536,0.32663193,612.31,611.23,1.0]
[1743310026738,1.42368761,612.3,611.23,1.0]
[1743310026938,2.55696183,612.3,611.23,1.0]
[1743310027331,1.13327422,612.3,611.23,1.0]
[1743310027531,1.13327422,612.3,611.24,0.28447642]
[1743310028135,1.13327422,612.29,611.24,0.28447642]
[1743310028538,1.13327422,612.28,610.9,2.47085025]
[1743310028734,1.13327422,612.28,611.23,1.0]
[1743310028938,1.41779017,612.28,611.24,0.28451595]
[1743310029138,1.13327422,612.27,611.24,0.28451595]
[1743310029635,1.13327422,612.26,611.24,0.28451595]
[1743310030539,1.13327422,612.25,611.24,0.28451595]
[1743310031339,1.13327422,612.24,611.24,0.28451595]
[1743310031639,1.13327422,612.24,610.91,0.32738046]
[1743310031833,1.13327422,612.24,611.24,0.28452061]
[1743310032037,0.28452061,612.28,611.24,0.28452061]
[1743310032232,0.28452061,612.28,610.91,0.32738046]
[1743310032435,0.28452061,612.28,611.23,1.0]
[1743310033040,1.13327422,612.27,611.23,1.0]
[1743310033837,0.28452061,612.28,611.24,0.28447293]
[1743310034642,2.88359376,612.31,610.92,2.47085025]
[1743310034941,3.16809808,612.31,611.24,0.28450432]
[1743310035143,3.16809808,612.31,610.93,0.32736974]
[1743310035342,3.16809808,612.31,611.23,1.0]
[1743310036336,1.74441047,612.31,611.23,1.0]
[1743310036642,0.61113625,612.31,611.23,1.0]
[1743310036838,0.61113625,612.31,611.24,0.28445665]
[1743310037046,0.32663193,612.31,611.24,0.28445665]
[1743310037538,0.32663193,612.31,611.23,1.0]
[1743310037938,0.32663193,612.31,611.24,0.28444968]
[1743310039838,0.32663193,612.31,611.36,1.0]
[1743310055351,1.632,612.3,611.36,1.0]
[1743310065162,3.05459339,612.3,611.36,1.0]
[1743310065463,4.18939798,612.3,611.36,1.0]
[1743310066564,4.51603524,612.3,611.36,1.0]
[1743310066863,1.42259339,612.29,611.35,0.28444503]
[1743310067264,2.55739798,612.29,611.35,0.28444503]
[1743310067665,2.55739798,612.29,611.15,2.47085025]
[1743310067968,2.55739798,612.29,611.23,1.0]
[1743310068264,0.28448921,612.28,611.23,1.0]
[1743310069965,2.55785158,612.29,611.23,1.0]
[1743310069966,1.13480459,612.29,611.23,1.0]
[1743310071069,1.95863726,612.3,611.23,1.0]
[1743310075962,3.38159517,612.3,611.23,1.0]
[1743310076363,4.51639976,612.3,611.23,1.0]
[1743310076569,3.09344185,612.3,611.23,1.0]
[1743310076969,1.42281867,612.29,611.23,1.0]
[1743310077165,1.95863726,612.3,611.23,1.0]
[1743310077363,0.3266426,612.29,611.23,1.0]
[1743310077973,1.46144719,612.29,611.23,1.0]
[1743310078170,2.88426586,612.29,611.23,1.0]
[1743310078970,1.13480459,612.28,611.23,1.0]
[1743310079573,2.88426586,612.29,611.23,1.0]
[1743310080167,1.13480459,612.28,611.23,1.0]
[1743310080776,1.46144719,612.29,611.23,1.0]
[1743310082876,0.2844799,612.28,611.23,1.0]
[1743310083076,1.8144799,612.28,611.23,1.0]
[1743310083277,3.23729857,612.28,611.23,1.0]
[1743310083576,1.42281867,612.27,611.23,1.0]
[1743310083772,2.14112783,612.28,611.23,1.0]
[1743310083978,1.13480459,612.27,611.23,1.0]
[1743310084174,2.55762326,612.27,611.23,1.0]
[1743310084375,1.42281867,612.27,611.23,1.0]
[1743310084677,2.14112783,612.28,611.23,1.0]
[1743310085573,1.85664793,612.28,611.23,1.0]
[1743310085976,0.28448572,612.27,611.23,1.0]
[1743310088178,1.70730439,612.27,611.23,1.0]
[1743310088576,1.42281867,612.27,611.23,1.0]
[1743310088780,2.55762326,612.27,611.23,1.0]
[1743310088982,0.28448688,612.26,611.23,1.0]
[1743310091579,2.55762326,612.27,611.23,1.0]
[1743310092085,0.28448688,612.26,611.23,1.0]
[1743310093888,0.28448688,612.26,611.25,2.47085025]
[1743310094590,1.85664793,612.28,611.25,2.47085025]
[1743310094883,0.28448339,612.25,611.25,2.47085025]
[1743310095885,0.28448339,612.25,611.23,1.28448339]
[1743310097093,0.28448339,612.25,611.25,2.47085025]
[1743310097694,1.85664793,612.28,611.25,2.47085025]
[1743310097895,0.28448339,612.25,611.25,2.47085025]
[1743310098395,0.28448339,612.25,611.31,2.47085025]
[1743310099996,0.28448339,612.25,611.32,2.47085025]
[1743310100599,1.85664793,612.28,611.32,2.47085025]
[1743310100799,3.278892,612.28,611.32,2.47085025]
[1743310101100,0.28447525,612.25,611.32,2.47085025]
[1743310101700,0.28447525,612.25,611.28,2.47085025]
[1743310103296,0.28447525,612.25,611.27,2.7553255]
[1743310104602,0.28447525,612.25,611.27,0.28447525]
[1743310106101,1.46147387,612.24,611.27,0.28447525]
[1743310106402,0.32667461,612.23,611.27,0.28447525]
[1743310106602,0.32667461,612.23,611.19,2.47085025]
[1743310106902,1.41931938,612.22,611.25,0.28451479]
[1743310107203,0.32668528,612.21,611.25,0.28451479]
[1743310107801,1.46148987,612.21,611.25,0.28451479]
[1743310108804,0.32668528,612.21,611.25,0.28451479]
[1743310109601,1.323,612.2,611.11,2.47085025]
[1743310109802,1.64969062,612.2,611.17,1.0]
[1743310110200,0.28452759,612.19,611.17,1.0]
[1743310112703,4.20783067,612.2,611.17,1.0]
[1743310112903,0.28452061,612.18,611.17,1.0]
[1743310115500,1.13480459,612.17,611.17,1.0]
[1743310115907,1.13480459,612.16,611.17,1.0]
[1743310116599,1.13480459,612.17,611.17,1.0]
[1743310117506,1.13480459,612.16,611.17,1.0]
[1743310118301,1.13480459,612.17,611.17,1.0]
[1743310119007,1.13480459,612.16,611.17,1.0]
[1743310119607,1.13480459,612.15,611.17,1.0]
[1743310120309,1.13480459,612.16,611.17,1.0]
[1743310120809,1.13480459,612.15,611.17,1.0]
[1743310121109,1.42385408,612.14,611.17,1.0]
[1743310121304,1.42385408,612.13,611.17,1.0]
[1743310121508,2.55865867,612.13,611.17,1.0]
[1743310121808,1.42385408,612.12,611.17,1.0]
[1743310122003,0.28454271,612.12,611.17,1.0]
[1743310122203,1.4193473,612.12,611.17,1.0]
[1743310123007,1.13480459,612.11,611.17,1.0]
[1743310123407,0.28454271,612.12,611.17,1.0]
[1743310124013,1.4193473,612.12,611.17,1.0]
[1743310124614,1.13480459,612.12,611.17,1.0]
[1743310124815,1.13480459,612.13,611.17,1.0]
[1743310125315,0.28454387,612.11,611.17,1.0]
[1743310127716,0.32672264,612.14,611.17,1.0]
[1743310128217,0.28454387,612.1,611.17,1.0]
[1743310130310,1.123,612.09,611.17,1.0]
[1743310134009,1.40755201,612.09,611.17,1.0]
[1743310136618,1.123,612.09,611.17,1.0]
[1743310136918,1.40755201,612.09,611.17,1.0]
[1743310141013,1.40755201,612.09,610.99,2.47085025]
[1743310141212,1.42260986,612.08,610.97,2.47085025]
[1743310141417,1.42260986,612.07,610.97,2.47085025]
[1743310141618,1.42260986,612.06,610.97,2.47085025]
[1743310141918,1.42260986,612.05,610.98,0.28462067]
[1743310142220,1.74938588,612.04,610.98,0.28462067]
[1743310142418,1.74939122,612.03,610.98,0.28462067]
[1743310142617,0.3267867,612.02,610.97,2.47085025]
[1743310143017,0.61141552,612.02,610.97,0.28462882]
[1743310143211,1.13514949,612.01,610.97,0.28462882]
[1743310143616,1.13514949,612.0,610.97,0.28462882]
[1743310144219,1.13514949,611.99,610.97,0.28462882]
[1743310144619,0.32680806,611.98,610.97,0.28462882]
[1743310145219,1.46195755,611.98,610.97,0.28462882]
[1743310145419,0.32680806,611.98,610.97,0.28462882]
[1743310145619,0.32680806,611.98,610.93,0.32736974]
[1743310146021,0.28463929,611.97,610.96,0.28463929]
[1743310146319,0.32681874,611.96,610.14,2.47085025]
[1743310146520,0.32681874,611.96,610.81,1.0]
[1743310148015,0.32681874,611.96,610.82,0.28468237]
[1743310148723,0.32681874,611.96,610.81,1.0]
[1743310149018,0.28475808,611.95,610.82,0.28475808]
[1743310149215,0.32682942,611.94,610.82,0.28475808]
[1743310151719,0.32682942,611.94,610.16,0.32778287]
[1743310151918,0.28476041,611.93,610.82,0.28476041]
[1743310152116,0.3268401,611.92,610.82,0.28476041]
[1743310152320,0.3268401,611.92,610.16,0.32778287]
[1743310152620,0.3268401,611.92,610.81,1.0]
[1743310153818,0.3268401,611.92,610.82,0.28468703]
[1743310154420,0.3268401,611.92,610.85,1.0]
[1743310155024,0.28465443,611.91,610.85,1.0]
[1743310156023,1.12,611.9,610.85,1.0]
[1743310161326,1.12,611.9,610.98,1.0]
[1743310184049,0.28463813,611.91,610.98,1.0]
[1743310186655,1.688,611.9,610.98,1.0]
[1743310194557,3.10925058,611.9,610.98,1.0]
[1743310194953,4.24440007,611.9,610.98,1.0]
[1743310195859,1.13514949,611.89,610.98,1.0]
[1743310196457,1.13514949,611.88,610.98,1.0]
[1743310197057,1.13514949,611.87,610.98,1.0]
[1743310197559,1.13514949,611.86,610.98,1.0]
[1743310197959,1.13514949,611.89,610.98,1.0]
[1743310198665,1.688,611.9,610.98,1.0]
[1743310199567,2.82314949,611.9,610.98,1.0]
[1743310200164,4.24710875,611.9,610.98,1.0]
[1743310200465,3.11195926,611.9,610.98,1.0]
[1743310201068,1.13514949,611.89,610.98,1.0]
[1743310201962,1.13514949,611.88,610.98,1.0]
[1743310202464,1.13514949,611.87,610.98,1.0]
[1743310203869,1.13514949,611.88,610.98,1.0]
[1743310204470,1.13514949,611.89,610.98,1.0]
[1743310204871,1.13514949,611.88,610.98,1.0]
[1743310205467,1.13514949,611.87,610.98,1.0]
[1743310205972,1.13514949,611.86,610.98,1.0]
[1743310206573,1.347,611.85,610.98,1.0]
[1743310206873,2.48214949,611.85,610.98,1.0]
[1743310207273,1.347,611.85,610.98,1.0]
[1743310207869,1.13514949,611.84,610.98,1.0]
[1743310208674,1.13514949,611.83,610.98,1.0]
[1743310209268,1.13514949,611.82,610.98,1.0]
[1743310210176,1.13514949,611.81,610.98,1.0]
[1743310210976,1.13514949,611.84,610.98,1.0]
[1743310211679,1.13514949,611.83,610.98,1.0]
[1743310212274,1.13514949,611.84,610.98,1.0]
[1743310213777,1.13514949,611.83,610.98,1.0]
[1743310214779,1.13514949,611.82,610.98,1.0]
[1743310215281,0.28466491,611.83,610.91,0.28466491]
[1743310215282,1.13514949,611.81,610.91,0.28466491]
[1743310215876,1.13514949,611.8,610.91,0.28466491]
[1743310216479,1.13514949,611.82,610.91,0.28466491]
[1743310217086,1.13514949,611.81,610.91,0.28466491]
[1743310217689,1.13514949,611.8,610.91,0.28466491]
[1743310218288,1.13514949,611.79,610.91,0.28466491]
[1743310218881,1.13514949,611.82,610.91,0.28466491]
[1743310219489,1.13514949,611.81,610.91,0.28466491]
[1743310220285,1.13514949,611.8,610.91,0.28466491]
[1743310220590,0.28466491,611.83,610.73,2.47085025]
[1743310220591,1.13514949,611.79,610.73,2.47085025]
[1743310220789,1.13514949,611.79,610.81,1.0]
[1743310220986,1.13514949,611.79,610.9,0.28469984]
[1743310221191,1.13514949,611.79,610.73,2.47085025]
[1743310221391,1.13514949,611.78,610.81,1.0]
[1743310221590,0.32692024,611.77,610.81,1.0]
[1743310221786,1.42579114,611.76,610.81,1.0]
[1743310221988,1.46207508,611.76,610.81,1.0]
[1743310222188,0.32693093,611.75,610.81,1.0]
[1743310222595,1.13514949,611.74,610.81,1.0]
[1743310222795,1.75273276,611.73,610.81,1.0]
[1743310222996,1.13514949,611.74,610.81,1.0]
[1743310222997,1.7527381,611.72,610.81,1.0]
[1743310223197,1.75274345,611.71,610.81,1.0]
[1743310223496,0.32695765,611.7,610.81,1.0]
[1743310223993,2.56094063,611.69,610.81,1.0]
[1743310224197,0.32696834,611.68,610.81,1.0]
[1743310224595,1.46211783,611.68,610.81,1.0]
[1743310225398,2.41714949,611.67,610.81,1.0]
[1743310225993,1.13514949,611.66,610.81,1.0]
[1743310226400,2.41714949,611.67,610.81,1.0]
[1743310227097,0.28474526,611.66,610.81,1.0]
[1743310232398,1.282,611.67,610.81,1.0]
[1743310246614,0.32696834,611.68,610.81,1.0]
[1743310250316,1.813,611.67,610.81,1.0]
[1743310269938,1.813,611.67,610.86,2.47085025]
[1743310271842,1.813,611.67,610.8,0.28470333]
[1743310272042,1.813,611.67,610.82,1.0]
[1743310279449,0.28470217,611.8,610.82,1.0]
[1743310280650,5.25786527,612.05,610.82,1.0]
[1743310280851,1.4218025,612.04,610.82,1.0]
[1743310281051,0.28462882,611.92,610.82,1.0]
[1743310281446,1.4218025,612.04,610.82,1.0]
[1743310281951,1.13514949,612.17,610.82,1.0]
[1743310282144,1.57,612.03,610.82,1.0]
[1743310282844,0.284623,612.02,610.82,1.0]
[1743310286850,1.57,612.03,610.82,1.0]
[1743310287047,0.284623,612.01,610.82,1.0]
[1743310289753,1.57,612.03,610.82,1.0]
[1743310290852,0.284623,612.02,610.82,1.0]
[1743310292654,1.57,612.03,610.82,1.0]
[1743310293151,0.28463464,612.02,610.82,1.0]
[1743310293351,1.41978413,612.02,610.82,1.0]
[1743310293554,2.84148364,612.02,610.82,1.0]
[1743310293849,1.13514949,612.01,610.82,1.0]
[1743310294050,0.32679738,612.0,610.82,1.0]
[1743310294757,1.13514949,611.99,610.82,1.0]
[1743310294950,0.32680806,611.98,610.82,1.0]
[1743310295652,1.13514949,611.97,610.82,1.0]
[1743310295858,0.32681874,611.96,610.82,1.0]
[1743310296053,1.46196823,611.96,610.82,1.0]
[1743310296657,1.13514949,611.95,610.82,1.0]
[1743310296954,0.32682942,611.94,610.82,1.0]
[1743310297159,1.46197891,611.94,610.82,1.0]
[1743310297757,0.32682942,611.94,610.82,1.0]
[1743310298856,1.95882942,611.94,610.82,1.0]
[1743310299061,0.28464395,611.93,610.82,1.0]
[1743310299254,1.70852378,611.93,610.82,1.0]
[1743310299656,2.84367327,611.93,610.82,1.0]
[1743310300859,1.13514949,611.92,610.82,1.0]
[1743310301062,1.46198959,611.92,610.82,1.0]
[1743310301257,0.32684545,611.91,610.82,1.0]
[1743310301456,1.42387983,611.9,610.82,1.0]
[1743310301658,1.75073596,611.89,610.82,1.0]
[1743310301860,0.32686147,611.88,610.82,1.0]
[1743310302961,1.13514949,611.87,610.82,1.0]
[1743310303263,0.32687216,611.86,610.82,1.0]
[1743310305166,0.2846847,611.85,610.82,1.0]
[1743310305366,0.32688284,611.84,610.82,1.0]
[1743310308167,0.28469518,611.83,610.82,1.0]
[1743310308468,0.32689353,611.82,610.82,1.0]
[1743310310270,1.13514949,611.81,610.82,1.0]
[1743310310465,0.32690421,611.8,610.82,1.0]
[1743310311064,1.13514949,611.79,610.82,1.0]
[1743310311264,0.3269149,611.78,610.82,1.0]
[1743310311971,1.13514949,611.77,610.82,1.0]
[1743310312273,0.32692559,611.76,610.82,1.0]
[1743310313768,0.32692559,611.76,610.81,0.28469518]
[1743310314065,1.13514949,611.75,610.81,0.28469518]
[1743310314270,0.32693628,611.74,610.81,0.28469518]
[1743310314670,1.46208577,611.74,610.81,0.28469518]
[1743310315369,1.471,611.73,610.81,0.28469518]
[1743310315566,0.32694696,611.72,610.81,0.28469518]
[1743310316366,1.75082679,611.72,610.81,0.28469518]
[1743310316671,1.46209645,611.72,610.42,2.47085025]
[1743310316872,1.46209645,611.72,610.69,1.0]
[1743310317371,0.28477556,611.71,610.69,1.0]
[1743310317567,0.32695765,611.7,610.69,1.0]
[1743310320273,0.28474643,611.69,610.69,1.0]
[1743310320675,0.32696834,611.68,610.69,1.0]
[1743310323074,0.28474992,611.67,610.69,1.0]
[1743310325683,0.32696834,611.68,610.69,1.0]
[1743310326177,0.28476274,611.66,610.69,1.0]
[1743310328781,0.32696834,611.68,610.69,1.0]
[1743310329079,0.28475342,611.65,610.69,1.0]
[1743310331786,0.32696834,611.68,610.69,1.0]